Cogmind - Beta 16.1 @@@ ROGUE MODE // 2026.04.26 @ 08:18:58 Player: kareds Result: Destroyed self with Rocket Launcher Performance ------------- Evolutions (0) 0 Regions Visited (2) 400 Robots Destroyed (9) 45 Value Destroyed (260) 260 Prototype IDs (0) 0 Alien Tech Used (0) 0 Bonus (0) 0 TOTAL SCORE: 705 Bonus ------- None Cogmind --------- Core Integrity 0/250 Matter 246/300 Energy 125/125 System Corruption 0% Temperature Cool (0) Movement Core (200) Ox3 Location -10/Mines Parts ------- > --- POWER (1) -------- Light Ion Engine > --- PROPULSION (2) --- (None) > --- UTILITY (2) ------ Hacking Suite > --- WEAPON (2) ------- Heavy Battle Rifle Rocket Launcher > --- INVENTORY (5) ---- Improved Heat Sink Small Matter Pod (0) Visual Processing Unit Small Laser Mining Laser Peak State ------------ > --- POWER ------------ Light Ion Engine > --- PROPULSION ------- Light Treads > --- UTILITY ---------- Seismic Detector Hacking Suite > --- WEAPON ----------- Heavy Battle Rifle Rocket Launcher > --- INVENTORY -------- Improved Heat Sink Small Matter Pod Visual Processing Unit Small Laser Mining Laser [Rating: 12] Favorites ----------- Power Light Ion Engine Engine Light Ion Engine Propulsion Light Treads Treads Light Treads Utility Seismic Detector Device Seismic Detector Storage Small Storage Unit Hackware Hacking Suite Weapon Small Laser Energy Gun Small Laser Ballistic Gun Heavy Battle Rifle Launcher Rocket Launcher Build | -11 -10 -10 ------- Run | Yrd Mat Min Slots Evolved . | . . . Power . | . . . Propulsion . | . . . Utility . | . . . Weapon . | . . . Parts Attached 12 | 7 4 1 Power 1 | 1 . . Engine 1 | 1 . . Core . | . . . Reactor . | . . . Propulsion 2 | 2 . . Treads 2 | 2 . . Leg . | . . . Wheel . | . . . Hover . | . . . Flight . | . . . Utility 3 | 2 1 . Device 1 | 1 . . Storage 1 | 1 . . Processor . | . . . Hackware 1 | . 1 . Protection . | . . . Artifact . | . . . Weapon 6 | 2 3 1 Energy Gun 4 | 2 2 . Energy Cannon . | . . . Ballistic Gun 1 | . . 1 Ballistic Cannon . | . . . Launcher 1 | . 1 . Special Weapon . | . . . Impact Weapon . | . . . Slashing Weapon . | . . . Piercing Weapon . | . . . Special Melee Weapon . | . . . Unidentified Prototypes . | . . . Parts Lost 2 | . . 2 Power . | . . . Propulsion 1 | . . 1 Utility 1 | . . 1 Weapon . | . . . Highest Loss Streak 2 | . . 2 To Critical Strikes . | . . . Average Backups . | . . 4 Power . | . . . Propulsion . | . . . Utility . | . . 2 Weapon . | . . 2 Tool/Special . | . . . Unused Backups 3 | . . 3 Power . | . . . Propulsion . | . . . Utility 3 | . . 3 Weapon . | . . . Tool/Special . | . . . Average Slot Usage (%) 91 | . 92 83 Engine 14 | . 14 14 Treads 20 | . 21 12 Device 14 | . 14 14 Storage 6 | . 7 . Hackware 7 | . 5 14 Energy Gun 24 | . 26 7 Ballistic Gun 1 | . . 6 Launcher 3 | . 1 14 Peak Build Rating 12 | 7 10 12 Average Rating 7 | 5 7 10 On Entrance 5 | . 7 10 Avg Prop Armor Cover (%) . | . . . Naked Turns . | . . . Heaviest Build 12 | 12 12 12 Greatest Support 40 | 40 40 20 Greatest Overweight (x) 3 | . . 3 Average Overweight (x) . | . . . Largest Inventory Capacity 8 | 8 8 5 Average Capacity 6 | 6 6 5 Most Carried 5 | . 4 5 Average Carried . | . . 4 Final Capacity 8 | 8 5 5 Final Carried 5 | . 4 5 Class Distribution -------------------- 100% | Mutant Dominant Class ---------------- Mutant | -10/Materials Mutant | -10/Mines Resources | -11 -10 -10 ----------- Run | Yrd Mat Min Matter Collected 302 | 213 66 23 Remotely . | . . . Salvage Created 297 | 38 195 64 Parts 11 | 3 5 3 Haulers Intercepted . | . . . Recyclers Shooed 2 | . 2 . Parts Field Recycled . | . . . Retrieved Matter . | . . . Parts Self-Destructed . | . . . Prevented . | . . . Parts Restored . | . . . Kills | -11 -10 -10 ------- Run | Yrd Mat Min Combat Hostiles Destroyed 7 | . 4 3 Guns 4 | . 3 1 AOE 2 | . . 2 Classes Destroyed 4 | 1 2 1 Tunneler 2 | 2 . . Operator 1 | . 1 . Grunt 6 | . 4 2 Assembled 1 | . . 1 Best Kill Streak 2 | 2 2 2 Combat Bots Only 2 | . 2 2 Max Kills in Single Turn 2 | 2 1 1 Gunslinging . | . . . Exploded 1 | . . 1 Melee . | . . . Uniques/NPCs Destroyed . | . . . Combat | -11 -10 -10 -------- Run | Yrd Mat Min Hostile Shots Fired 52 | . 31 21 Missed 16 | . 11 5 Hits 36 | . 20 16 Melee 7 | . . 7 Projectile 29 | . 20 9 Critical Strikes 1 | . . 1 Damage Taken 687 | . 298 389 Core 261 | . 34 227 Absorbed by Shields . | . . . Regen/Repaired (Parts) 146 | . 146 . Core Remaining (%) 100 | 100 . . Volleys Fired 28 | 2 19 7 Largest 2 | 2 2 1 Hottest 90 | 90 90 65 Shots Fired 46 | 4 35 7 Gun 42 | 4 35 3 Cannon . | . . . Launcher 4 | . . 4 Special . | . . . Kinetic . | . . . Thermal 42 | 4 35 3 Explosive 4 | . . 4 Electromagnetic . | . . . Robot Hit Streak 9 | 2 9 5 Robot Miss Streak 2 | 1 2 2 Penetration Max . | . . . Secondary Targets 1 | . 1 . Max Gunslinging Chain 1 | . 1 . Shots Hit Robots 35 | 3 27 5 Core Hits 18 | 2 10 6 Critical Kills . | . . . Critical Parts Destroyed . | . . . Critical Strikes 1 | . 1 . Burn 1 | . 1 . Melee Attacks . | . . . Impact . | . . . Slashing . | . . . Piercing . | . . . Sneak Attacks . | . . . Combat Hostiles . | . . . Follow-up Attacks . | . . . Damage Inflicted 629 | 46 322 261 Guns 412 | 46 319 47 Cannons . | . . . Explosions 214 | . . 214 Melee . | . . . Ramming 3 | . 3 . Kinetic . | . . . Thermal 412 | 46 319 47 Explosive 214 | . . 214 Electromagnetic . | . . . Impact . | . . . Slashing . | . . . Piercing . | . . . Highest Corruption . | . . . Average Corruption . | . . . Corruption Purged . | . . . Corruption Blocked . | . . . Overload Shots . | . . . Overflow Damage 23 | . . 23 Projectiles . | . . . Explosions 23 | . . 23 Melee . | . . . Knockbacks . | . . . Impact . | . . . Kinetic . | . . . Secondary . | . . . Self-Inflicted Damage 41 | . . 41 Shots 1 | . . 1 Rammed 2 | . 2 . Targets Rammed 2 | . 2 . Kicked . | . . . Crushed . | . . . Highest Temperature 232 | 60 232 100 Average Temperature 99 | 30 115 44 Received Heat Transfer 168 | . 132 36 Effects 3 | . 3 . Interference 3 | . 3 . Siege Activations . | . . . Martial Activations . | . . . Shielding Activations . | . . . Robots Disrupted . | . . . Combat Hostiles . | . . . Robots Corrupted . | . . . Combat Hostiles . | . . . Parts Fried . | . . . Impact Corruptions . | . . . Robots Melted 1 | . 1 . Combat Hostiles 1 | . 1 . Parts Melted 5 | 1 4 . Heat Transferred 1140 | 124 905 111 Parts Sabotaged . | . . . Parts Stolen . | . . . Parts Stripped . | . . . Power Chain Reactions . | . . . Alert | -11 -10 -10 ------- Run | Yrd Mat Min Maximum Alert Level . | . . . Low Security (%) 100 | 100 100 100 Level 1 . | . . . Level 2 . | . . . Level 3 . | . . . Level 4 . | . . . Level 5 . | . . . High Security . | . . . Max Security . | . . . Peak Influence 70 | 10 50 70 Initial . | . . . Average 10 | 1 7 36 Influence Increases 188 | 10 108 70 Destroy 0b10 Robot/C 120 | . 80 40 Destroy 0b10 Robot/NC 15 | 10 5 . Destroy Leader 30 | . 20 10 Successful Hack 3 | . 3 . Destroy Structure 20 | . . 20 Influence Decreases 188 | 10 108 70 Time Decay 178 | 10 108 60 Lost Part 10 | . . 10 Squads Dispatched 1 | . 1 . Investigation . | . . . Extermination . | . . . Reinforcement 1 | . 1 . Assault . | . . . Garrison . | . . . Intercept . | . . . Searches Triggered . | . . . Construction Impeded . | . . . Haulers Reinforced . | . . . Active Scanning Responses . | . . . Cargo Convoy Interrupts . | . . . Stealth | -11 -10 -10 --------- Run | Yrd Mat Min Distress Signals . | . . . Communications Jammed . | . . . Distress Signals . | . . . Times Spotted 27 | . 6 21 Peak Tracking Total 20 | . 2 20 Tactical Retreats 1 | . . 1 Traps | -11 -10 -10 ------- Run | Yrd Mat Min Traps Triggered 2 | . 2 . Indirectly . | . . . Trap Hack Attempts . | . . . Triggered . | . . . Disarmed . | . . . Reprogrammed . | . . . Reused . | . . . Traps Extracted . | . . . Installed . | . . . Triggered . | . . . Machines | -11 -10 -10 ---------- Run | Yrd Mat Min Machines Disabled . | . . . Max in Single Turn . | . . . Machines Repaired . | . . . Machines Dismantled . | . . . Machines Sabotaged . | . . . Overloaded Fab Kills . | . . . Hacking | -11 -10 -10 --------- Run | Yrd Mat Min Machines Accessed 2 | . 2 . Terminals 1 | . 1 . Fabricators . | . . . Repair Stations 1 | . 1 . Recycling Units . | . . . Scanalyzers . | . . . Garrison Access . | . . . Total Hacks 12 | . 12 . Successful 6 | . 6 . Failed 6 | . 6 . Catastrophic . | . . . Database Lockouts . | . . . Manual 5 | . 5 . Terminals 5 | . 5 . Fabricators . | . . . Repair Stations 7 | . 7 . Recycling Units . | . . . Scanalyzers . | . . . Garrison Access . | . . . Terminal Hacks . | . . . Fabricator Hacks . | . . . Repair Station Hacks 6 | . 6 . Scan Component 3 | . 3 . Repair 3 | . 3 . Recycling Unit Hacks . | . . . Scanalyzer . | . . . Garrison Access Hacks . | . . . Unauthorized Hacks . | . . . Terminals . | . . . Fabricators . | . . . Repair Stations . | . . . Recycling Units . | . . . Scanalyzers . | . . . Garrison Access . | . . . Data Cores Recovered . | . . . Used . | . . . Hacking Detections 2 | . 2 . Full Trace Events 1 | . 1 . Feedback Events . | . . . Feedback Blocked . | . . . Robot Schematics Acquired . | . . . Robots Built . | . . . Authchips . | . . . Time . | . . . Total Robot Build Rating . | . . . Part Schematics Acquired . | . . . Parts Built . | . . . Authchips . | . . . Time . | . . . Total Part Build Rating . | . . . Part Studies Acquired . | . . . Parts Repaired 3 | . 3 . Time 105 | . 105 . Parts Recycled . | . . . Recycled Matter . | . . . Retrieved Matter . | . . . Retrieved Components . | . . . Parts Scanalyzed . | . . . Part Schematics Acquired . | . . . Parts Damaged . | . . . Bothacking | -11 -10 -10 ------------ Run | Yrd Mat Min Used RIF Installer . | . . . Robots Hacked . | . . . Non-combat . | . . . Combat . | . . . Robot Hacks Applied . | . . . Relay Couplers Released . | . . . Fabnet Peak Effective % . | . . . Robots Rewired . | . . . Allies Hacked . | . . . Hacks Repelled . | . . . Allies | -11 -10 -10 -------- Run | Yrd Mat Min Total Allies . | . . . Largest Group . | . . . Highest-Rated Group . | . . . Highest-Rated Ally . | . . . Total Orders . | . . . Ally Attacks . | . . . Total Damage . | . . . Kills . | . . . Allies Corrupted . | . . . Allies Melted . | . . . Intel | -11 -10 -10 ------- Run | Yrd Mat Min Active Infowar (turns) 973 | 46 786 141 Seismic 973 | 46 786 141 Robot Analysis Total . | . . . Derelict Logs Recovered . | . . . Drone Launches . | . . . Drone Recoveries . | . . . Exploration | -11 -10 -10 ------------- Run | Yrd Mat Min Turns Passed 1071 | 114 816 141 Spaces Moved 414 | 63 274 77 Core 8 | 2 . 6 Treads 406 | 61 274 71 Legs . | . . . Wheels . | . . . Hover . | . . . Flight . | . . . Fastest Speed 50 | 50 160 160 Average Speed 160 | 156 160 163 Slowest Speed 200 | 160 160 200 Overloaded Moves . | . . . Propulsion Burnouts . | . . . Robots Hopped . | . . . Potential Cave-ins . | . . . Cave-ins Triggered . | . . . Exploration Rate (%) 22 | 4 44 19 Regions Visited 2 Branch Regions 1 Pre-discovered Areas . | . . . Known Exits Taken . | . . . Unknown Exits Taken 2 | 1 1 . Scrap Searched . | . . . Spaces Dug . | . . . Terrain Destroyed 29 | . . 29 Melee . | . . . Projectile . | . . . AOE 29 | . . 29 Terrain Rammed . | . . . Walls Destroyed . | . . . Machines Disabled . | . . . Actions | -11 -10 -10 --------- Run | Yrd Mat Min Total 772 | 71 615 86 Wait 309 | . 309 . Move 412 | 62 273 77 Hop . | . . . Pick Up 6 | . 5 1 Fast Attach 8 | 7 1 . Attach 1 | . 1 . Detach 1 | . 1 . Swap 4 | . 3 1 Drop 1 | . 1 . Fire 28 | 2 19 7 Melee . | . . . Ram . | . . . Kick . | . . . Crush 2 | . 2 . Escape Stasis . | . . . Rewire . | . . . Trap . | . . . Miscellaneous . | . . . Route ------- -11/Scrapyard -10/Materials (discovered 2 exits: [*Mat] / [*Min]) -10/Mines History --------- Turn | Location | Event 10 | -11/Scrapyard | Discovered new exit (range 15) 115 | -11/Scrapyard | Entered Materials 306 | -10/Materials | Build established: Mutant 566 | -10/Materials | Repaired Corrupted Hacking Suite 594 | -10/Materials | Repaired Lgt. Treads 621 | -10/Materials | Repaired Lgt. Treads? 803 | -10/Materials | Discovered new exit (range 3) 886 | -10/Materials | Discovered new exit (range 16) 931 | -10/Materials | Entered Mines 1000 | -10/Mines | A weapon hastily lodged in a ceiling crevice suddenly fell to the ground 1008 | -10/Mines | Assembled infested the area 1049 | -10/Mines | Core integrity fell below 50% 1070 | -10/Mines | Core integrity fell below 20% 1072 | -10/Mines | Destroyed self with Rocket Launcher Last Messages --------------- 00956_ K-01 Serf collects debris. 00966_ R-06 Scavenger collects Aluminum Leg. 00968_ R-06 Scavenger collects Heat Sink. 00969_ K-01 Serf cleans the Plasma Injector. 00970_ The unstable cave ceiling collapses. 00977_ K-01 Serf collects debris. 01000_ A Hvy. Battle Rifle has been hastily shoved under some rubble with a note attached: "To battle!" 01004_ Acquired Hvy. Battle Rifle. 01008_ ALERT: Infestation in the mines, dispatching Demolisher response squad. 01011_ R-06 Scavenger collects Particle Gun. 01057_ T-07 Excavator is excavating. 01059_ Lgt. Treads destroyed. 01062_ T-07 Excavator is excavating. 01071_ T-07 Excavator destroyed. 01072_ as-87482 destroyed. 01072_ Seismic Detector destroyed. 01072_ Destroyed Seismic Detector. Map ----- +----------------------------------------------------+ | ?????????????????????????????????????? | | ?????????????????????????????????????? | | ?????????????????????????????????????? | | ??????????????????? ?????????????????? | | ?????????????????? ?????????????????? | | ??????????????????!*?????????????????? | | ??????????????????!%?????????????????? | | ??????????????????%*?????????????????? | | ??????????????????==?????????????????? | | ?????????????????? ??????????????????? | | ?????????????????? ??????????????????? | | ????????????????## ??????????????????? | | ????????????????# ??????????????????? | | ????????????????# ??????????????????? | | ??????????????### ??????????????????? | | ??????????????? #??????????????????? | | ????????????????# #######????????????? | | ????????????????# #????????????? | | ????????????????# ##### #????????????? | | ???????????????## ##??# #????????????? | | ??????????????## ##?# ######???????? | | ?????????????## ### ##??????? | | ?????????????# ###### ##?????? | | ?????????????# ## ##??# ##????? | | ????????????#####?## #??## #????? | | ????????????#@ #???# ##???## #????? | | ???????????# ! ##??# ##?????## #????? | | ???????????# a #### #??????## ##???? | | ???????????# %aa #??????# ##??? | | ???????????### #######??????# ##?? | | ????????????????????????????## #?? | | ?????????????????????????????## #?? | | ??????????????????????????????# ##?# | | ??????????????????????????????# #### | | ??????????????????????????????# ## | | ??????????????????????????????# ## | | ??????????????????????????????## | | ???????????????????????????????## | | ????????????????????????????????###### | | ?????????????????????????????????????? | | ?????????????????????????????????????? | | | | | | | | | | | | | | | | | | | +----------------------------------------------------+ Best States ------------- Heat Dissipation 25 Energy Generation 10 Energy Capacity 125 Matter Stores 300 Matter Capacity 300 Sight Range 16 Terrain Scan Density 10 Evasion (%) 40 Recoil Reduction 2 Offensive Hacking 10 Item Schematics ----------------- None Robot Schematics ------------------ None Fabricated ------------ Nothing Repaired ---------- Hacking Suite | 10% | -10/Materials | Corrupted Lgt. Treads | 30% | -10/Materials Lgt. Treads | 72% | -10/Materials Studied --------- None Alien Tech Used ----------------- None Achievements -------------- None Challenges ------------ None Game ------ Seed LayeredThrowingStreamer Manual? 0 Play Time 00:08:18 Cumulative 16.9 hours Start 2026.04.26 @ 08:11:54 End 2026.04.26 @ 08:18:58 Sessions 1 Manual Loads 0 Difficulty Rogue Special Mode None Game No. 23 Rogue 7 Adventurer 16 Explorer 0 Win Type - Total 0 Types 0/0/0/0/0/0/0/0/0/0 Lore% 28 Gallery% 24 Achievement% 22 Wizard Run 0 Options --------- Layout 1 ASCII 0 Keyboard 0 Movement Mouse Keybinds 0 Fullscreen 1 Font 24/Smallcaps Map View 50x35 Zoom Use 0% Tactical HUD 1 Map Filters NONE Filters NONE Steam 1 RUN: 0ea4fbff-d25a-4cfc-9dc1-e6fec3982a69